[Event "Hungarian Rapid-ch 2022"]
[Site "Ajka"]
[Date "2022.07.15"]
[Round "3.8"]
[White "Kiss, Pal"]
[Black "Antal, Gergely"]
[Result "0-1"]
[ECO "D83"]
[WhiteElo "2243"]
[BlackElo "2571"]
[Annotator "ChessBase"]
[PlyCount "58"]
[EventDate "2022.07.15"]
[EventType "swiss"]
[EventCountry "HUN"]
[SourceTitle "playchess.com"]
[Source "ChessBase"]
[SourceQuality "1"]
[TimeControl "900+10"]

1. d4 {[%emt 0:00:11]} Nf6 {[%emt 0:00:13]} 2. c4 {[%emt 0:00:02]} g6 {[%emt 0:00:02]} 3. Nc3 {[%emt 0:00:02]} d5 {[%emt 0:00:01]} 4. Bf4 {[%emt 0:00:06]} Bg7 {[%emt 0:00:08]} 5. e3 {[%emt 0:00:01]} O-O {[%emt 0:00:05]} 6. Rc1 {[%emt 0:00:09]} Be6 {[%emt 0:00:56]} 7. cxd5 {[%emt 0:00:11]} Nxd5 {[%emt 0:00:04]} 8. Nxd5 {[%emt 0:00:02]} Qxd5 {[%emt 0:00:04]} 9. b3 {[%emt 0:00:07]} c6 {[%emt 0:00:42]} 10. Nf3 {[%emt 0:00:11]} Qa5+ {[%emt 0:02:03]} 11. Qd2 {[%emt 0:00:03]} Qxd2+ {[%emt 0:00:07]} 12. Nxd2 {[%emt 0:01:01]} Nd7 {[%emt 0:00:30]} 13. Bc4 {[%emt 0:01:20]} Bxc4 {[%emt 0:00:01]} 14. Nxc4 {[%emt 0:00:11]} c5 {[%emt 0:00:03]} 15. dxc5 {[%emt 0:01:46]} Nxc5 {[%emt 0:00:03]} 16. Ne5 {[%emt 0:02:16]} Rfc8 {[%emt 0:02:21]} 17. Ke2 {[%emt 0:04:44]} Ne4 {[%emt 0:01:10]} 18. Kf3 {[%emt 0:02:35]} f5 {[%emt 0:00:55]} 19. h4 {[%emt 0:00:34]} Bf6 {[%emt 0:01:11]} 20. g4 {[%emt 0:00:20]} e6 {[%emt 0:02:14]} 21. Nd7 {[%emt 0:00:16]} Bb2 {[%emt 0:00:21]} 22. Rxc8+ {[%emt 0:00:42]} Rxc8 {[%emt 0:00:02]} 23. gxf5 {[%emt 0:00:10]} exf5 {[%emt 0:00:01]} 24. Be5 {[%emt 0:00:23]} Bxe5 {[%emt 0:00:32]} 25. Nxe5 {[%emt 0:00:02]} Rc2 {[%emt 0:00:02]} 26. Rh2 {[%emt 0:00:11]} Rxa2 {[%emt 0:00:01]} 27. h5 {[%emt 0:00:11]} g5 {[%emt 0:00:37]} 28. h6 {[%emt 0:00:01]} g4+ {[%emt 0:00:47]} 29. Kf4 {[%emt 0:00:10]} g3 {[%emt 0:00:01]} 0-1

[Event "Hungarian Rapid-ch 2022"]
[Site "Ajka"]
[Date "2022.07.15"]
[Round "3.9"]
[White "Kantor, Gergely"]
[Black "Nemeth, Zalan"]
[Result "1-0"]
[ECO "A50"]
[WhiteElo "2582"]
[BlackElo "2194"]
[Annotator "ChessBase"]
[PlyCount "39"]
[EventDate "2022.07.15"]
[EventType "swiss"]
[EventCountry "HUN"]
[SourceTitle "playchess.com"]
[Source "ChessBase"]
[SourceQuality "1"]
[TimeControl "900+10"]

1. d4 {[%emt 0:00:12]} Nf6 {[%emt 0:00:14]} 2. c4 {[%emt 0:00:02]} b6 {[%emt 0:00:16]} 3. Nc3 {[%emt 0:00:09]} Bb7 {[%emt 0:00:01]} 4. Qc2 {[%emt 0:00:03]} d5 {[%emt 0:00:04]} 5. cxd5 {[%emt 0:00:01]} Nxd5 {[%emt 0:00:01]} 6. Nf3 {[%emt 0:00:16]} e6 {[%emt 0:00:07]} 7. e4 {[%emt 0:00:02]} Nxc3 {[%emt 0:00:03]} 8. bxc3 {[%emt 0:00:03]} c5 {[%emt 0:00:05]} 9. Bb5+ {[%emt 0:01:19]} Bc6 {[%emt 0:00:03]} 10. Bd3 {[%emt 0:00:48]} cxd4 {[%emt 0:00:16]} 11. O-O {[%emt 0:00:59]} Be7 {[%emt 0:00:43]} 12. cxd4 {[%emt 0:00:14]} O-O {[%emt 0:00:04]} 13. Bb2 {[%emt 0:00:32]} Bb7 {[%emt 0:00:37]} 14. d5 {[%emt 0:01:09]} exd5 {[%emt 0:00:26]} 15. exd5 {[%emt 0:00:10]} Qxd5 {[%emt 0:00:33]} 16. Rfe1 {[%emt 0:02:10]} Qh5 {[%emt 0:02:57]} 17. Re5 {[%emt 0:03:24]} Qh6 18. Bc1 {[%emt 0:00:32]} Qf6 {[%emt 0:01:19]} 19. Bxh7+ {[%emt 0:01:21]} Kh8 {[%emt 0:00:02]} 20. Rh5 {[%emt 0:00:26]} 1-0

[Event "Hungarian Rapid-ch 2022"]
[Site "Ajka"]
[Date "2022.07.15"]
[Round "3.10"]
[White "Udvardi, Zalan"]
[Black "Aczel, Gergely"]
[Result "0-1"]
[ECO "B23"]
[WhiteElo "2310"]
[BlackElo "2499"]
[Annotator "ChessBase"]
[PlyCount "76"]
[EventDate "2022.07.15"]
[EventType "swiss"]
[EventCountry "HUN"]
[SourceTitle "playchess.com"]
[Source "ChessBase"]
[SourceQuality "1"]
[TimeControl "900+10"]

1. e4 {[%emt 0:00:11]} c5 {[%emt 0:00:11]} 2. Nc3 {[%emt 0:00:06]} a6 {[%emt 0:00:00]} 3. g3 {[%emt 0:00:01]} b5 {[%emt 0:00:02]} 4. Bg2 {[%emt 0:00:01]} Bb7 {[%emt 0:00:01]} 5. d3 {[%emt 0:00:01]} e6 {[%emt 0:00:00]} 6. f4 {[%emt 0:00:01]} b4 {[%emt 0:00:11]} 7. Na4 {[%emt 0:00:14]} d5 {[%emt 0:00:49]} 8. f5 {[%emt 0:00:00]} exf5 {[%emt 0:00:23]} 9. exd5 {[%emt 0:00:43]} Bxd5 {[%emt 0:02:37]} 10. Qe2+ {[%emt 0:00:01]} Be7 {[%emt 0:00:06]} 11. Nxc5 {[%emt 0:00:34]} Nf6 {[%emt 0:00:56]} 12. Na4 {[%emt 0:04:17]} O-O {[%emt 0:00:14]} 13. Bg5 {[%emt 0:00:37]} Nc6 {[%emt 0:01:05]} 14. Nf3 {[%emt 0:01:06]} Re8 {[%emt 0:05:58]} 15. O-O-O {[%emt 0:00:16]} Ng4 {[%emt 0:00:31]} 16. Bd2 {[%emt 0:03:29]} Qa5 {[%emt 0:03:35]} 17. b3 {[%emt 0:00:14]} Bc5 {[%emt 0:00:30]} 18. Qf1 {[%emt 0:00:00]} Nf2 {[%emt 0:00:11]} 19. Ng5 {[%emt 0:03:38]} Bxg2 {[%emt 0:00:15]} 20. Qxg2 {[%emt 0:00:02]} Ne7 {[%emt 0:00:37]} 21. Nxc5 {[%emt 0:00:29]} Nxd1 {[%emt 0:00:08]} 22. Nb7 {[%emt 0:00:31]} Qxa2 {[%emt 0:00:01]} 23. Kxd1 {[%emt 0:00:07]} Rac8 {[%emt 0:00:11]} 24. Bc1 {[%emt 0:00:04]} Nd5 {[%emt 0:00:14]} 25. Nd6 {[%emt 0:00:29]} Nc3+ {[%emt 0:00:03]} 26. Kd2 {[%emt 0:00:00]} Nb1+ {[%emt 0:00:02]} 27. Kd1 {[%emt 0:00:02]} Nc3+ {[%emt 0:00:04]} 28. Kd2 {[%emt 0:00:01]} Re2+ {[%emt 0:00:14]} 29. Qxe2 {[%emt 0:00:05]} Nxe2 {[%emt 0:00:01]} 30. Nxc8 {[%emt 0:00:02]} Nd4 31. Ke3 {[%emt 0:01:03]} Nxc2+ {[%emt 0:00:04]} 32. Kf4 {[%emt 0:00:07]} h6 {[%emt 0:00:36]} 33. Nf3 {[%emt 0:00:05]} Qxb3 {[%emt 0:00:14]} 34. Ne7+ {[%emt 0:00:23]} Kh7 {[%emt 0:00:05]} 35. Nxf5 {[%emt 0:00:07]} Qxd3 {[%emt 0:00:09]} 36. h4 {[%emt 0:01:06]} Qc4+ {[%emt 0:00:01]} 37. Ke5 {[%emt 0:00:10]} f6+ {[%emt 0:00:10]} 38. Kd6 {[%emt 0:00:10]} Qd3+ {[%emt 0:00:01]} 0-1

[Event "Hungarian Rapid-ch 2022"]
[Site "Ajka"]
[Date "2022.07.15"]
[Round "3.11"]
[White "Balint, Vilmos"]
[Black "Bagi, Mate"]
[Result "0-1"]
[ECO "A05"]
[WhiteElo "2283"]
[BlackElo "2460"]
[Annotator "ChessBase"]
[PlyCount "106"]
[EventDate "2022.07.15"]
[EventType "swiss"]
[EventCountry "HUN"]
[SourceTitle "playchess.com"]
[Source "ChessBase"]
[SourceQuality "1"]
[TimeControl "900+10"]

1. Nf3 {[%emt 0:00:15]} Nf6 {[%emt 0:00:14]} 2. g3 {[%emt 0:00:02]} g6 {[%emt 0:00:06]} 3. Bg2 {[%emt 0:00:01]} Bg7 {[%emt 0:00:01]} 4. O-O {[%emt 0:00:02]} d5 {[%emt 0:00:06]} 5. c4 {[%emt 0:00:15]} d4 {[%emt 0:01:14]} 6. b4 {[%emt 0:00:52]} c5 {[%emt 0:00:36]} 7. d3 {[%emt 0:00:43]} O-O {[%emt 0:00:10]} 8. bxc5 {[%emt 0:01:10]} Nc6 {[%emt 0:00:10]} 9. Nbd2 {[%emt 0:00:05]} e5 {[%emt 0:00:13]} 10. Rb1 {[%emt 0:01:11]} h6 {[%emt 0:01:00]} 11. Ne1 {[%emt 0:01:20]} Qe7 {[%emt 0:00:43]} 12. Qa4 {[%emt 0:00:29]} Bg4 {[%emt 0:02:06]} 13. Nef3 {[%emt 0:02:44]} Rab8 {[%emt 0:00:22]} 14. h3 {[%emt 0:00:05]} Bd7 {[%emt 0:00:18]} 15. Qa3 {[%emt 0:00:34]} Rfe8 {[%emt 0:00:54]} 16. Ne1 {[%emt 0:00:34]} Bf8 {[%emt 0:00:06]} 17. Nb3 {[%emt 0:00:57]} b6 {[%emt 0:00:42]} 18. Qa4 {[%emt 0:00:49]} Rec8 {[%emt 0:01:57]} 19. Ba3 {[%emt 0:00:02]} e4 {[%emt 0:00:32]} 20. Nc2 {[%emt 0:00:08]} Qe5 {[%emt 0:01:14]} 21. Qa6 {[%emt 0:02:02]} e3 {[%emt 0:01:14]} 22. fxe3 {[%emt 0:00:42]} bxc5 {[%emt 0:00:13]} 23. exd4 {[%emt 0:00:16]} Qxe2 {[%emt 0:00:33]} 24. Rf2 {[%emt 0:00:54]} Qxd3 {[%emt 0:00:14]} 25. Bxc5 {[%emt 0:01:31]} Bxc5 {[%emt 0:00:20]} 26. dxc5 {[%emt 0:00:02]} Ne4 {[%emt 0:00:53]} 27. Bxe4 {[%emt 0:01:03]} Qxe4 {[%emt 0:00:01]} 28. Re1 {[%emt 0:00:12]} Qd3 {[%emt 0:00:05]} 29. Re3 {[%emt 0:00:08]} Qd1+ {[%emt 0:00:02]} 30. Kh2 {[%emt 0:00:03]} Qh5 {[%emt 0:00:45]} 31. h4 {[%emt 0:00:01]} Re8 {[%emt 0:00:12]} 32. Ref3 {[%emt 0:00:34]} Ne5 {[%emt 0:00:33]} 33. Ncd4 {[%emt 0:00:35]} Nxf3+ {[%emt 0:00:21]} 34. Rxf3 {[%emt 0:00:01]} Qg4 {[%emt 0:00:25]} 35. Qf6 {[%emt 0:00:05]} Qh3+ {[%emt 0:00:08]} 36. Kg1 {[%emt 0:00:01]} Re1+ {[%emt 0:00:02]} 37. Rf1 {[%emt 0:00:17]} Qxg3+ {[%emt 0:00:05]} 38. Kh1 {[%emt 0:00:01]} Rxf1+ {[%emt 0:00:25]} 39. Qxf1 {[%emt 0:00:01]} Qxh4+ {[%emt 0:00:02]} 40. Kg1 {[%emt 0:00:00]} Qg3+ {[%emt 0:00:09]} 41. Qg2 {[%emt 0:00:09]} Qxg2+ {[%emt 0:00:14]} 42. Kxg2 {[%emt 0:00:01]} Be6 {[%emt 0:00:30]} 43. Na5 {[%emt 0:00:28]} Rb2+ {[%emt 0:00:23]} 44. Kg3 {[%emt 0:00:03]} Rxa2 {[%emt 0:00:05]} 45. Nab3 {[%emt 0:00:39]} Kf8 {[%emt 0:00:20]} 46. c6 {[%emt 0:00:12]} Ke7 {[%emt 0:00:09]} 47. Nc5 {[%emt 0:00:04]} Bc8 {[%emt 0:00:10]} 48. Nb7 {[%emt 0:00:12]} Ra4 {[%emt 0:00:16]} 49. Nb5 {[%emt 0:00:20]} Rxc4 {[%emt 0:00:17]} 50. Nxa7 {[%emt 0:00:12]} Be6 {[%emt 0:00:07]} 51. Na5 {[%emt 0:00:19]} Ra4 {[%emt 0:00:07]} 52. c7 {[%emt 0:00:06]} Rxa5 {[%emt 0:00:14]} 53. Nc6+ {[%emt 0:00:02]} Kd7 {[%emt 0:00:02]} 0-1

[Event "Hungarian Rapid-ch 2022"]
[Site "Ajka"]
[Date "2022.07.15"]
[Round "3.12"]
[White "Miszler, Levente"]
[Black "Korpa, Bence"]
[Result "0-1"]
[ECO "A40"]
[WhiteElo "2243"]
[BlackElo "2537"]
[Annotator "ChessBase"]
[PlyCount "102"]
[EventDate "2022.07.15"]
[EventType "swiss"]
[EventCountry "HUN"]
[SourceTitle "playchess.com"]
[Source "ChessBase"]
[SourceQuality "1"]
[TimeControl "900+10"]

1. d4 {[%emt 0:00:13]} g6 {[%emt 0:00:21]} 2. c4 {[%emt 0:00:08]} Bg7 {[%emt 0:00:02]} 3. Nf3 {[%emt 0:00:11]} e6 {[%emt 0:00:03]} 4. g3 {[%emt 0:00:03]} Ne7 {[%emt 0:00:03]} 5. Bg2 {[%emt 0:00:03]} d5 {[%emt 0:00:05]} 6. O-O {[%emt 0:00:04]} Nbc6 {[%emt 0:00:03]} 7. e3 {[%emt 0:00:57]} O-O {[%emt 0:00:52]} 8. Nbd2 {[%emt 0:00:35]} b6 {[%emt 0:00:11]} 9. b3 {[%emt 0:00:34]} a5 {[%emt 0:00:07]} 10. Bb2 {[%emt 0:00:14]} a4 {[%emt 0:00:32]} 11. Rc1 {[%emt 0:00:59]} axb3 {[%emt 0:03:07]} 12. axb3 {[%emt 0:00:06]} Bb7 {[%emt 0:00:05]} 13. Ra1 {[%emt 0:01:20]} Rxa1 {[%emt 0:00:10]} 14. Qxa1 {[%emt 0:00:03]} Qd7 {[%emt 0:00:05]} 15. Rc1 {[%emt 0:01:51]} Ra8 {[%emt 0:00:34]} 16. Qb1 {[%emt 0:00:03]} Nf5 {[%emt 0:00:20]} 17. Ne1 {[%emt 0:00:32]} Nb4 {[%emt 0:02:42]} 18. Nd3 {[%emt 0:00:51]} Nxd3 {[%emt 0:00:24]} 19. Qxd3 {[%emt 0:00:03]} Nd6 {[%emt 0:02:52]} 20. Ra1 {[%emt 0:00:57]} Rxa1+ {[%emt 0:00:07]} 21. Bxa1 {[%emt 0:00:02]} dxc4 {[%emt 0:00:04]} 22. Nxc4 {[%emt 0:01:00]} Bxg2 {[%emt 0:00:50]} 23. Kxg2 {[%emt 0:00:06]} Qb5 {[%emt 0:00:32]} 24. Bb2 {[%emt 0:01:23]} h5 {[%emt 0:00:19]} 25. Ba3 {[%emt 0:00:35]} Qd5+ {[%emt 0:01:25]} 26. Kg1 {[%emt 0:00:19]} Ne4 {[%emt 0:00:21]} 27. h4 {[%emt 0:01:41]} b5 {[%emt 0:01:25]} 28. Nd2 {[%emt 0:02:18]} Nxd2 {[%emt 0:00:09]} 29. Qxd2 {[%emt 0:00:02]} Qxb3 {[%emt 0:00:02]} 30. Qa5 {[%emt 0:00:21]} Qb1+ {[%emt 0:00:36]} 31. Kg2 {[%emt 0:00:14]} Qe4+ {[%emt 0:00:08]} 32. Kg1 {[%emt 0:00:04]} Qb7 {[%emt 0:00:20]} 33. Qb4 {[%emt 0:00:11]} Qa8 {[%emt 0:00:24]} 34. Qc3 {[%emt 0:00:21]} c6 {[%emt 0:00:23]} 35. Bc5 {[%emt 0:00:24]} Qa2 {[%emt 0:00:24]} 36. Bb4 {[%emt 0:00:18]} Qd5 {[%emt 0:00:15]} 37. Qa3 {[%emt 0:00:28]} Qd7 {[%emt 0:00:13]} 38. Qa8+ {[%emt 0:00:18]} Kh7 {[%emt 0:00:01]} 39. Qb8 {[%emt 0:00:04]} Bf6 {[%emt 0:00:29]} 40. Qf8 {[%emt 0:00:59]} e5 {[%emt 0:00:08]} 41. Bc5 {[%emt 0:00:38]} Bg7 {[%emt 0:00:17]} 42. Qa8 {[%emt 0:00:08]} exd4 {[%emt 0:00:05]} 43. exd4 {[%emt 0:00:02]} Bxd4 {[%emt 0:00:09]} 44. Bxd4 {[%emt 0:00:03]} Qxd4 {[%emt 0:00:02]} 45. Qxc6 {[%emt 0:00:02]} b4 {[%emt 0:00:07]} 46. Qb7 {[%emt 0:00:26]} Kg7 {[%emt 0:00:01]} 47. Kg2 {[%emt 0:00:12]} Qc3 {[%emt 0:00:03]} 48. f3 {[%emt 0:00:10]} b3 {[%emt 0:00:10]} 49. g4 {[%emt 0:00:02]} b2 {[%emt 0:00:05]} 50. gxh5 {[%emt 0:00:12]} Qc2+ {[%emt 0:00:06]} 51. Kg3 {[%emt 0:00:04]} b1=Q {[%emt 0:00:06]} 0-1

[Event "Hungarian Rapid-ch 2022"]
[Site "Ajka"]
[Date "2022.07.15"]
[Round "3.13"]
[White "Molnar, Aurel Jr."]
[Black "Csonka, Balazs"]
[Result "0-1"]
[ECO "B54"]
[WhiteElo "2014"]
[BlackElo "2495"]
[Annotator "ChessBase"]
[PlyCount "70"]
[EventDate "2022.07.15"]
[EventType "swiss"]
[EventCountry "HUN"]
[SourceTitle "playchess.com"]
[Source "ChessBase"]
[SourceQuality "1"]
[TimeControl "900+10"]

1. e4 {[%emt 0:00:12]} c5 {[%emt 0:00:22]} 2. Nf3 {[%emt 0:00:02]} d6 {[%emt 0:00:16]} 3. d4 {[%emt 0:00:03]} cxd4 {[%emt 0:00:01]} 4. Nxd4 {[%emt 0:00:02]} Nf6 {[%emt 0:00:02]} 5. f3 {[%emt 0:00:02]} e5 {[%emt 0:04:15]} 6. Nb3 {[%emt 0:00:06]} a5 {[%emt 0:00:01]} 7. Bb5+ {[%emt 0:00:19]} Bd7 {[%emt 0:01:09]} 8. a4 {[%emt 0:00:26]} d5 {[%emt 0:04:00]} 9. exd5 {[%emt 0:01:07]} Bxb5 {[%emt 0:00:01]} 10. axb5 {[%emt 0:00:04]} Nxd5 {[%emt 0:01:43]} 11. c4 {[%emt 0:04:26]} Qh4+ {[%emt 0:00:12]} 12. g3 {[%emt 0:01:46]} Qxc4 {[%emt 0:00:03]} 13. Bd2 {[%emt 0:02:06]} a4 {[%emt 0:02:32]} 14. Nc3 {[%emt 0:01:17]} Nxc3 {[%emt 0:00:37]} 15. Bxc3 {[%emt 0:00:13]} Qxb5 {[%emt 0:00:04]} 16. Nd2 {[%emt 0:01:08]} Nc6 {[%emt 0:00:08]} 17. Qe2 {[%emt 0:00:55]} Qxe2+ {[%emt 0:00:15]} 18. Kxe2 {[%emt 0:00:01]} b5 {[%emt 0:00:02]} 19. Ne4 {[%emt 0:01:05]} b4 {[%emt 0:01:22]} 20. Be1 {[%emt 0:00:22]} Nd4+ {[%emt 0:00:31]} 21. Kf2 {[%emt 0:00:13]} f5 {[%emt 0:00:04]} 22. Nd2 {[%emt 0:00:08]} Bc5 {[%emt 0:00:09]} 23. Kg2 {[%emt 0:00:07]} Nc2 {[%emt 0:00:16]} 24. Rc1 {[%emt 0:00:28]} Ne3+ {[%emt 0:00:04]} 25. Kh3 {[%emt 0:00:13]} Bd4 {[%emt 0:00:38]} 26. Bf2 {[%emt 0:00:12]} g5 {[%emt 0:00:11]} 27. Rhe1 {[%emt 0:01:53]} g4+ {[%emt 0:00:09]} 28. fxg4 {[%emt 0:00:07]} fxg4+ {[%emt 0:00:02]} 29. Kh4 {[%emt 0:00:01]} Ng2+ {[%emt 0:00:09]} 30. Kxg4 {[%emt 0:00:02]} Nxe1 {[%emt 0:00:03]} 31. Bxd4 {[%emt 0:00:09]} Nd3 {[%emt 0:00:15]} 32. Bxe5 {[%emt 0:00:55]} Nxe5+ {[%emt 0:00:06]} 33. Kf5 {[%emt 0:00:06]} Ra5 {[%emt 0:00:34]} 34. Rc8+ {[%emt 0:00:22]} Kd7 {[%emt 0:00:02]} 35. Rxh8 {[%emt 0:00:03]} Ng6+ {[%emt 0:00:01]} 0-1

[Event "Hungarian Rapid-ch 2022"]
[Site "Ajka"]
[Date "2022.07.15"]
[Round "3.14"]
[White "Horvath, Kristof"]
[Black "Csiszar, Csaba"]
[Result "1/2-1/2"]
[ECO "B22"]
[WhiteElo "2053"]
[BlackElo "2389"]
[Annotator "ChessBase"]
[PlyCount "151"]
[EventDate "2022.07.15"]
[EventType "swiss"]
[EventCountry "HUN"]
[SourceTitle "playchess.com"]
[Source "ChessBase"]
[SourceQuality "1"]
[TimeControl "900+10"]

1. e4 {[%emt 0:00:12]} c5 {[%emt 0:00:11]} 2. c3 {[%emt 0:00:02]} Nf6 {[%emt 0:00:02]} 3. e5 {[%emt 0:00:05]} Nd5 {[%emt 0:00:03]} 4. d4 {[%emt 0:00:04]} cxd4 {[%emt 0:00:01]} 5. Qxd4 {[%emt 0:00:02]} Nb6 {[%emt 0:00:04]} 6. Nf3 {[%emt 0:00:09]} Nc6 {[%emt 0:00:01]} 7. Qe4 {[%emt 0:00:08]} g6 {[%emt 0:00:02]} 8. Bd3 {[%emt 0:00:44]} Bg7 {[%emt 0:00:03]} 9. O-O {[%emt 0:00:02]} O-O {[%emt 0:00:03]} 10. Bf4 {[%emt 0:00:03]} d5 {[%emt 0:00:03]} 11. exd6 {[%emt 0:00:11]} exd6 {[%emt 0:00:38]} 12. Qe2 {[%emt 0:01:00]} Bg4 {[%emt 0:00:20]} 13. h3 {[%emt 0:02:01]} Re8 {[%emt 0:00:45]} 14. Be3 {[%emt 0:00:02]} Bd7 {[%emt 0:02:40]} 15. Qd2 {[%emt 0:01:06]} Ne5 {[%emt 0:00:38]} 16. Nxe5 {[%emt 0:00:38]} dxe5 {[%emt 0:00:02]} 17. Na3 {[%emt 0:00:21]} Qc7 {[%emt 0:01:30]} 18. Rad1 {[%emt 0:03:50]} Rad8 {[%emt 0:00:55]} 19. Qc2 {[%emt 0:00:02]} a6 {[%emt 0:00:37]} 20. c4 {[%emt 0:00:18]} Be6 {[%emt 0:00:50]} 21. Qb3 {[%emt 0:01:44]} Nd7 {[%emt 0:00:02]} 22. Be4 {[%emt 0:00:02]} b6 {[%emt 0:02:24]} 23. Bd5 {[%emt 0:00:20]} Nc5 {[%emt 0:00:28]} 24. Qc3 {[%emt 0:00:54]} Rc8 {[%emt 0:01:09]} 25. b4 {[%emt 0:00:28]} Nd7 {[%emt 0:00:01]} 26. Bxe6 {[%emt 0:00:32]} Rxe6 {[%emt 0:00:02]} 27. Qd3 {[%emt 0:00:01]} Nf6 {[%emt 0:00:36]} 28. c5 {[%emt 0:00:11]} b5 {[%emt 0:00:55]} 29. Nc2 {[%emt 0:00:46]} Qc6 {[%emt 0:00:53]} 30. Qb3 {[%emt 0:00:45]} Rce8 {[%emt 0:00:45]} 31. Rd3 {[%emt 0:00:26]} Qe4 {[%emt 0:00:46]} 32. Rfd1 {[%emt 0:00:18]} Nh5 {[%emt 0:00:33]} 33. Rd6 {[%emt 0:00:41]} h6 {[%emt 0:00:52]} 34. c6 {[%emt 0:00:21]} Bf8 {[%emt 0:00:22]} 35. Rxe6 {[%emt 0:00:08]} Rxe6 {[%emt 0:00:01]} 36. Rd8 {[%emt 0:00:48]} Rxc6 {[%emt 0:00:26]} 37. Bc5 {[%emt 0:00:09]} Rxc5 {[%emt 0:00:24]} 38. bxc5 {[%emt 0:00:01]} Nf4 {[%emt 0:00:01]} 39. Ne3 {[%emt 0:00:24]} Ne6 {[%emt 0:00:07]} 40. Qd5 {[%emt 0:01:05]} Qb1+ {[%emt 0:00:09]} 41. Kh2 {[%emt 0:00:04]} Nxd8 42. Qxd8 {[%emt 0:00:02]} Qc1 {[%emt 0:00:46]} 43. Nd5 {[%emt 0:00:57]} Qxc5 {[%emt 0:00:00]} 44. Nf6+ {[%emt 0:00:01]} Kg7 {[%emt 0:00:02]} 45. Ne8+ {[%emt 0:00:01]} Kh8 {[%emt 0:00:19]} 46. Qf6+ {[%emt 0:00:23]} Kg8 {[%emt 0:00:00]} 47. Qxa6 {[%emt 0:00:02]} Be7 {[%emt 0:00:44]} 48. Qa8 {[%emt 0:00:23]} Kh7 {[%emt 0:00:01]} 49. Qb7 {[%emt 0:00:08]} b4 {[%emt 0:00:10]} 50. Nc7 {[%emt 0:00:12]} Bd6 {[%emt 0:00:14]} 51. Ne8 {[%emt 0:00:02]} e4+ {[%emt 0:00:04]} 52. Nxd6 {[%emt 0:00:07]} Qxd6+ 53. g3 {[%emt 0:00:02]} Qe6 {[%emt 0:00:12]} 54. Qxb4 {[%emt 0:00:02]} Qxa2 {[%emt 0:00:11]} 55. Kg2 {[%emt 0:00:29]} e3 {[%emt 0:00:03]} 56. Qe1 {[%emt 0:00:15]} Qxf2+ {[%emt 0:00:13]} 57. Qxf2 {[%emt 0:00:01]} exf2 {[%emt 0:00:01]} 58. Kxf2 {[%emt 0:00:01]} Kg7 {[%emt 0:00:01]} 59. Kf3 {[%emt 0:00:04]} Kf6 {[%emt 0:00:00]} 60. Kf4 {[%emt 0:00:01]} Ke6 {[%emt 0:00:05]} 61. h4 {[%emt 0:00:10]} f6 {[%emt 0:00:02]} 62. Ke4 {[%emt 0:00:06]} h5 {[%emt 0:00:18]} 63. Kf4 {[%emt 0:00:00]} Kd5 {[%emt 0:00:08]} 64. Kf3 {[%emt 0:00:37]} Ke5 {[%emt 0:00:05]} 65. Ke3 {[%emt 0:00:02]} Kf5 {[%emt 0:00:03]} 66. Kf3 {[%emt 0:00:01]} g5 {[%emt 0:00:10]} 67. hxg5 {[%emt 0:00:08]} Kxg5 68. Kf2 {[%emt 0:00:09]} Kg4 {[%emt 0:00:15]} 69. Kg2 {[%emt 0:00:01]} Kg5 {[%emt 0:00:21]} 70. Kf3 {[%emt 0:00:08]} Kf5 {[%emt 0:00:01]} 71. Ke3 {[%emt 0:00:05]} Kg6 {[%emt 0:00:17]} 72. Kf4 {[%emt 0:00:04]} Kg7 {[%emt 0:00:01]} 73. g4 {[%emt 0:01:04]} h4 {[%emt 0:00:04]} 74. Kf3 {[%emt 0:00:01]} Kh6 {[%emt 0:00:03]} 75. Kg2 {[%emt 0:00:01]} Kg6 {[%emt 0:00:04]} 76. Kh2 {[%emt 0:00:01]} 1/2-1/2

[Event "Hungarian Rapid-ch 2022"]
[Site "Ajka"]
[Date "2022.07.15"]
[Round "3.15"]
[White "Papp, Levente"]
[Black "Gelle, Istvan"]
[Result "1-0"]
[ECO "A12"]
[WhiteElo "2394"]
[BlackElo "2218"]
[Annotator "ChessBase"]
[PlyCount "79"]
[EventDate "2022.07.15"]
[EventType "swiss"]
[EventCountry "HUN"]
[SourceTitle "playchess.com"]
[Source "ChessBase"]
[SourceQuality "1"]
[TimeControl "900+10"]

1. c4 {[%emt 0:00:12]} c6 {[%emt 0:00:11]} 2. Nf3 {[%emt 0:00:06]} d5 {[%emt 0:00:02]} 3. b3 {[%emt 0:00:01]} Bf5 {[%emt 0:00:04]} 4. Bb2 {[%emt 0:00:06]} e6 {[%emt 0:00:02]} 5. g3 {[%emt 0:00:31]} Nf6 {[%emt 0:00:19]} 6. Bg2 {[%emt 0:00:01]} Be7 {[%emt 0:00:24]} 7. O-O {[%emt 0:00:03]} O-O {[%emt 0:00:03]} 8. d3 {[%emt 0:00:31]} h6 {[%emt 0:00:15]} 9. Nc3 {[%emt 0:00:28]} Nbd7 {[%emt 0:00:13]} 10. Qc2 {[%emt 0:00:24]} Bh7 {[%emt 0:00:27]} 11. e4 {[%emt 0:01:28]} Nc5 {[%emt 0:01:16]} 12. Rad1 {[%emt 0:00:50]} a5 {[%emt 0:00:17]} 13. Qe2 {[%emt 0:00:36]} dxc4 {[%emt 0:04:55]} 14. bxc4 {[%emt 0:00:52]} Qb6 {[%emt 0:06:34]} 15. e5 {[%emt 0:00:27]} Nfd7 {[%emt 0:00:41]} 16. d4 {[%emt 0:02:40]} Na6 {[%emt 0:00:02]} 17. d5 {[%emt 0:00:04]} cxd5 {[%emt 0:00:32]} 18. cxd5 {[%emt 0:00:01]} Ndc5 {[%emt 0:00:59]} 19. d6 {[%emt 0:01:51]} Bd8 {[%emt 0:00:02]} 20. Nd4 {[%emt 0:00:51]} Bd3 {[%emt 0:00:38]} 21. Rxd3 {[%emt 0:00:28]} Nxd3 {[%emt 0:00:01]} 22. Qxd3 {[%emt 0:00:02]} Qxb2 {[%emt 0:00:01]} 23. Ndb5 {[%emt 0:01:25]} Nc5 {[%emt 0:00:16]} 24. Qc4 {[%emt 0:00:28]} Bb6 {[%emt 0:00:21]} 25. Rb1 {[%emt 0:00:10]} Qd2 {[%emt 0:00:23]} 26. Rd1 {[%emt 0:00:50]} Qb2 {[%emt 0:00:08]} 27. Nd4 {[%emt 0:00:47]} Nd7 {[%emt 0:00:16]} 28. Na4 {[%emt 0:02:39]} Qb4 {[%emt 0:00:14]} 29. Nxb6 {[%emt 0:00:16]} Nxb6 {[%emt 0:00:02]} 30. Qc7 {[%emt 0:00:11]} Nd5 {[%emt 0:00:07]} 31. Bxd5 {[%emt 0:00:10]} exd5 {[%emt 0:00:01]} 32. Nf5 {[%emt 0:00:11]} Kh7 {[%emt 0:00:12]} 33. Ne7 {[%emt 0:00:13]} d4 {[%emt 0:00:08]} 34. Qc2+ {[%emt 0:00:11]} g6 {[%emt 0:00:02]} 35. Qe4 {[%emt 0:00:08]} f5 {[%emt 0:00:36]} 36. Qd5 {[%emt 0:00:22]} f4 {[%emt 0:00:14]} 37. Qe6 {[%emt 0:00:03]} Rg8 {[%emt 0:00:08]} 38. Nxg8 {[%emt 0:00:09]} Rxg8 {[%emt 0:00:01]} 39. Qf7+ {[%emt 0:00:07]} Rg7 {[%emt 0:00:00]} 40. Qxf4 1-0